[Event "98th Caplin Hastings Masters 2024-25"]
[Site "Hastings"]
[Date "2024.12.31"]
[Round "5.51"]
[White "Kim, Nayoon B"]
[Black "Bryant, Marc A"]
[Result "0-1"]
[ECO "A10"]
[WhiteElo "1663"]
[BlackElo "1825"]
[Annotator "NA"]
[PlyCount "46"]
[EventDate "2024.12.23"]
[EventType "swiss"]
[EventCountry "ENG"]
[SourceTitle "playchess.com"]
[Source "ChessBase"]
[SourceQuality "1"]
[TimeControl "5400+30"]

1. c4 {[%emt 0:00:02]} g6 {[%emt 0:06:01]} 2. Nc3 {[%emt 0:00:05]} Bg7 {[%emt 0:00:08]} 3. g3 {[%emt 0:00:05]} d6 {[%emt 0:03:47]} 4. Bg2 {[%emt 0:00:04]} h6 {[%emt 0:00:21]} 5. Nf3 {[%emt 0:00:07]} g5 {[%emt 0:00:53]} 6. Qc2 {[%emt 0:01:49]} Nc6 {[%emt 0:00:34]} 7. a3 {[%emt 0:05:20]} e5 {[%emt 0:00:48]} 8. d3 {[%emt 0:01:24]} g4 {[%emt 0:02:29]} 9. Nd2 {[%emt 0:03:48]} Nd4 {[%emt 0:00:04]} 10. Qd1 {[%emt 0:00:10]} c6 {[%emt 0:02:57]} 11. e3 {[%emt 0:03:23]} Nf5 {[%emt 0:03:27]} 12. Qxg4 {[%emt 0:11:21]} Nxe3 {[%emt 0:00:37]} 13. Qxg7 {[%emt 0:01:10]} Nc2+ {[%emt 0:00:08]} 14. Kf1 {[%emt 0:01:23]} Nxa1 {[%emt 0:01:40]} 15. Qxh8 {[%emt 0:01:30]} Qg5 {[%emt 0:00:15]} 16. Nb3 {[%emt 0:20:02]} Qg6 {[%emt 0:00:08]} 17. Nxa1 {[%emt 0:06:27]} h5 {[%emt 0:05:17]} 18. Ne4 {[%emt 0:02:01]} Ke7 {[%emt 0:04:34]} 19. h4 {[%emt 0:02:49]} f5 {[%emt 0:03:28]} 20. Ng5 {[%emt 0:01:38]} Nf6 {[%emt 0:02:19]} 21. Nh3 {[%emt 0:02:25]} Qg4 {[%emt 0:01:45]} 22. Kg1 {[%emt 0:00:54]} Qd1+ {[%emt 0:01:07]} 23. Kh2 {[%emt 0:00:05]} Ng4# {[%emt 0:25:53]} 0-1

[Event "98th Caplin Hastings Masters 2024-25"]
[Site "Hastings"]
[Date "2024.12.31"]
[Round "5.52"]
[White "Han, Yongsu"]
[Black "Graham, Oliver"]
[Result "0-1"]
[ECO "C55"]
[WhiteElo "1718"]
[BlackElo "1789"]
[Annotator "NA"]
[PlyCount "58"]
[EventDate "2024.12.23"]
[EventType "swiss"]
[EventCountry "ENG"]
[SourceTitle "playchess.com"]
[Source "ChessBase"]
[SourceQuality "1"]
[TimeControl "5400+30"]

1. e4 {[%emt 0:00:03]} e5 {[%emt 0:00:09]} 2. Nf3 {[%emt 0:00:04]} Nc6 {[%emt 0:00:07]} 3. Bc4 {[%emt 0:00:03]} Be7 {[%emt 0:00:10]} 4. O-O {[%emt 0:00:53]} Nf6 {[%emt 0:00:08]} 5. Re1 {[%emt 0:00:35]} Nxe4 {[%emt 0:01:03]} 6. Rxe4 {[%emt 0:00:25]} d5 {[%emt 0:00:08]} 7. Nxe5 {[%emt 0:04:05]} Nxe5 {[%emt 0:00:36]} 8. Rxe5 {[%emt 0:00:09]} dxc4 {[%emt 0:00:22]} 9. Qe2 {[%emt 0:01:30]} Be6 {[%emt 0:00:26]} 10. Nc3 {[%emt 0:07:31]} O-O {[%emt 0:00:34]} 11. b3 {[%emt 0:03:21]} Bf6 {[%emt 0:00:52]} 12. Re3 {[%emt 0:03:03]} cxb3 {[%emt 0:01:55]} 13. axb3 {[%emt 0:00:32]} a6 {[%emt 0:00:31]} 14. Bb2 {[%emt 0:01:54]} Re8 {[%emt 0:01:50]} 15. Re1 {[%emt 0:02:04]} Qd7 {[%emt 0:02:05]} 16. Rg3 {[%emt 0:05:48]} Bf5 {[%emt 0:01:54]} 17. Re3 {[%emt 0:02:32]} Rxe3 {[%emt 0:01:54]} 18. fxe3 {[%emt 0:00:12]} Bxc2 {[%emt 0:00:49]} 19. Rf1 {[%emt 0:01:42]} Bd3 {[%emt 0:00:56]} 20. Qf3 {[%emt 0:08:07]} Bxf1 {[%emt 0:01:07]} 21. Kxf1 {[%emt 0:00:05]} Qxd2 {[%emt 0:00:28]} 22. Qxb7 {[%emt 0:00:54]} Rd8 {[%emt 0:00:22]} 23. Ne4 {[%emt 0:06:02]} Qxb2 {[%emt 0:01:34]} 24. Nxf6+ {[%emt 0:00:16]} Qxf6+ {[%emt 0:00:31]} 25. Ke2 {[%emt 0:00:12]} Qb6 {[%emt 0:00:18]} 26. Qe4 {[%emt 0:01:09]} Qxb3 {[%emt 0:00:22]} 27. Qe7 {[%emt 0:00:40]} Qd1+ {[%emt 0:00:29]} 28. Kf2 {[%emt 0:00:20]} Qd2+ {[%emt 0:00:33]} 29. Kf3 {[%emt 0:00:16]} Qd6 {[%emt 0:00:20]} 0-1

[Event "98th Caplin Hastings Masters 2024-25"]
[Site "Hastings"]
[Date "2024.12.31"]
[Round "6.1"]
[White "Xue, Haowen"]
[Black "Zhang, Pengxiang"]
[Result "1/2-1/2"]
[ECO "A31"]
[WhiteElo "2502"]
[BlackElo "2567"]
[Annotator "ChessBase"]
[PlyCount "148"]
[EventDate "2024.12.23"]
[EventType "swiss"]
[EventCountry "ENG"]
[SourceTitle "playchess.com"]
[Source "ChessBase"]
[SourceQuality "1"]
[TimeControl "5400+30"]

1. c4 {[%emt 0:00:02]} Nf6 {[%emt 0:04:39]} 2. Nf3 {[%emt 0:00:09]} g6 {[%emt 0:00:26]} 3. Nc3 {[%emt 0:00:19]} Bg7 {[%emt 0:01:43]} 4. e4 {[%emt 0:00:13]} c5 {[%emt 0:00:54]} 5. d4 {[%emt 0:00:29]} cxd4 {[%emt 0:00:26]} 6. Nxd4 {[%emt 0:00:05]} O-O {[%emt 0:00:58]} 7. Be2 {[%emt 0:01:18]} d6 {[%emt 0:12:03]} 8. Be3 {[%emt 0:03:01]} a6 {[%emt 0:04:03]} 9. O-O {[%emt 0:04:35]} Nfd7 {[%emt 0:10:26]} 10. Qd2 {[%emt 0:04:55]} b6 {[%emt 0:04:55]} 11. Bh6 {[%emt 0:01:36]} Bb7 {[%emt 0:04:53]} 12. Nf5 {[%emt 0:03:04]} Bxh6 {[%emt 0:00:30]} 13. Nxh6+ {[%emt 0:00:07]} Kg7 {[%emt 0:08:36]} 14. Ng4 {[%emt 0:04:57]} f5 {[%emt 0:07:28]} 15. exf5 {[%emt 0:07:01]} gxf5 {[%emt 0:00:35]} 16. Ne3 {[%emt 0:16:37]} f4 {[%emt 0:09:29]} 17. Ned5 {[%emt 0:01:54]} e5 {[%emt 0:00:04]} 18. Bf3 {[%emt 0:05:28]} Ra7 {[%emt 0:06:38]} 19. g3 {[%emt 0:04:28]} Nc6 {[%emt 0:12:21]} 20. Ne2 {[%emt 0:01:07]} Ne7 {[%emt 0:01:37]} 21. gxf4 {[%emt 0:02:49]} Bxd5 {[%emt 0:00:02]} 22. Bxd5 {[%emt 0:00:25]} Nxd5 {[%emt 0:00:30]} 23. Qxd5 {[%emt 0:01:55]} Nf6 {[%emt 0:02:55]} 24. Qf3 {[%emt 0:03:30]} Kh8 {[%emt 0:00:47]} 25. Kh1 {[%emt 0:00:31]} exf4 {[%emt 0:01:21]} 26. Rad1 {[%emt 0:10:19]} Rg7 {[%emt 0:02:23]} 27. Rg1 {[%emt 0:05:40]} Rxg1+ {[%emt 0:00:21]} 28. Rxg1 {[%emt 0:00:24]} Qe7 {[%emt 0:00:03]} 29. Nc3 {[%emt 0:00:55]} b5 {[%emt 0:03:01]} 30. cxb5 axb5 {[%emt 0:00:01]} 31. Qxf4 {[%emt 0:02:17]} Qb7+ {[%emt 0:00:23]} 32. Rg2 {[%emt 0:02:53]} Qe7 {[%emt 0:01:26]} 33. f3 {[%emt 0:01:42]} Nd7 {[%emt 0:00:08]} 34. Qd4+ {[%emt 0:00:41]} Qe5 {[%emt 0:00:10]} 35. Nxb5 {[%emt 0:01:53]} Rxf3 {[%emt 0:00:10]} 36. Re2 {[%emt 0:02:12]} Qxd4 {[%emt 0:00:38]} 37. Nxd4 {[%emt 0:00:01]} Rd3 {[%emt 0:00:53]} 38. Nc6 {[%emt 0:04:19]} Nb6 {[%emt 0:00:32]} 39. Nb4 {[%emt 0:01:45]} Rd4 {[%emt 0:00:08]} 40. a3 {[%emt 0:00:22]} Nc4 {[%emt 0:00:10]} 41. Kg2 {[%emt 0:00:48]} Kg7 {[%emt 0:00:15]} 42. Rf2 {[%emt 0:01:10]} Rd1 {[%emt 0:00:18]} 43. Kf3 {[%emt 0:01:53]} Rb1 {[%emt 0:00:49]} 44. Nd3 {[%emt 0:00:45]} d5 {[%emt 0:00:01]} 45. a4 {[%emt 0:00:52]} Kf6 {[%emt 0:00:52]} 46. b4 {[%emt 0:01:18]} Ke6 {[%emt 0:00:32]} 47. Kf4 {[%emt 0:00:41]} Ra1 {[%emt 0:00:59]} 48. Rf3 {[%emt 0:00:31]} Kd6 {[%emt 0:00:12]} 49. a5 {[%emt 0:00:16]} Kc6 {[%emt 0:00:12]} 50. Rh3 {[%emt 0:00:25]} Rf1+ {[%emt 0:00:06]} 51. Kg4 {[%emt 0:00:33]} Rf7 {[%emt 0:01:15]} 52. Rh5 {[%emt 0:00:17]} Ne3+ {[%emt 0:00:15]} 53. Kg3 {[%emt 0:00:10]} Kb5 {[%emt 0:00:12]} 54. Re5 {[%emt 0:00:25]} Nf1+ {[%emt 0:00:16]} 55. Kg2 {[%emt 0:00:36]} Kc4 {[%emt 0:00:00]} 56. a6 {[%emt 0:01:19]} Kb5 {[%emt 0:02:51]} 57. Nc5 {[%emt 0:00:11]} Kxb4 {[%emt 0:00:30]} 58. Nb7 {[%emt 0:00:16]} Rf6 {[%emt 0:00:14]} 59. a7 {[%emt 0:00:34]} Ra6 {[%emt 0:00:02]} 60. Nd8 {[%emt 0:00:46]} Kc5 {[%emt 0:00:42]} 61. Nc6 {[%emt 0:00:41]} Ra2+ {[%emt 0:00:28]} 62. Kxf1 {[%emt 0:00:12]} Kxc6 {[%emt 0:00:00]} 63. Re7 {[%emt 0:00:12]} h5 {[%emt 0:00:13]} 64. Ke1 {[%emt 0:01:02]} h4 {[%emt 0:00:22]} 65. Rh7 {[%emt 0:00:35]} Kb6 {[%emt 0:00:15]} 66. Rxh4 {[%emt 0:00:19]} Rxa7 {[%emt 0:00:54]} 67. Ke2 {[%emt 0:00:23]} Ra2+ {[%emt 0:01:22]} 68. Ke3 {[%emt 0:00:30]} Ra3+ {[%emt 0:00:11]} 69. Ke2 {[%emt 0:00:29]} Ra2+ {[%emt 0:00:12]} 70. Ke3 {[%emt 0:00:07]} Ra3+ {[%emt 0:00:04]} 71. Ke2 {[%emt 0:00:06]} Kc5 {[%emt 0:01:07]} 72. Kd2 {[%emt 0:01:20]} Ra2+ {[%emt 0:00:35]} 73. Kd3 {[%emt 0:00:11]} Ra3+ {[%emt 0:00:05]} 74. Kd2 {[%emt 0:00:03]} Ra2+ {[%emt 0:00:05]} 1/2-1/2

[Event "98th Caplin Hastings Masters 2024-25"]
[Site "Hastings"]
[Date "2024.12.31"]
[Round "6.2"]
[White "Kaasen, Tor Fredrik"]
[Black "Laurent-Paoli, Pierre"]
[Result "0-1"]
[ECO "E48"]
[WhiteElo "2473"]
[BlackElo "2559"]
[Annotator "ChessBase"]
[PlyCount "66"]
[EventDate "2024.12.23"]
[EventType "swiss"]
[EventCountry "ENG"]
[SourceTitle "playchess.com"]
[Source "ChessBase"]
[SourceQuality "1"]
[TimeControl "5400+30"]

1. d4 {[%emt 0:03:43]} Nf6 {[%emt 0:04:13]} 2. c4 {[%emt 0:00:28]} e6 {[%emt 0:00:14]} 3. Nc3 {[%emt 0:00:46]} Bb4 {[%emt 0:00:17]} 4. e3 {[%emt 0:00:25]} O-O {[%emt 0:00:31]} 5. Bd3 {[%emt 0:00:25]} Re8 {[%emt 0:03:16]} 6. Nge2 {[%emt 0:02:57]} d5 {[%emt 0:00:58]} 7. O-O {[%emt 0:00:41]} Nbd7 {[%emt 0:00:20]} 8. Qb3 {[%emt 0:05:14]} Bd6 {[%emt 0:03:11]} 9. Ng3 {[%emt 0:03:36]} c6 {[%emt 0:11:37]} 10. e4 {[%emt 0:06:37]} Bxg3 {[%emt 0:19:41]} 11. hxg3 {[%emt 0:00:21]} e5 {[%emt 0:00:58]} 12. exd5 {[%emt 0:17:05]} exd4 {[%emt 0:00:46]} 13. Ne2 {[%emt 0:02:09]} cxd5 {[%emt 0:15:02]} 14. Nxd4 {[%emt 0:06:38]} Nc5 {[%emt 0:00:06]} 15. Qc2 {[%emt 0:01:19]} dxc4 {[%emt 0:01:48]} 16. Qxc4 {[%emt 0:00:17]} b6 {[%emt 0:01:43]} 17. Qc3 {[%emt 0:08:16]} Nxd3 {[%emt 0:06:27]} 18. Qxd3 {[%emt 0:00:16]} Ba6 {[%emt 0:02:05]} 19. Qxa6 {[%emt 0:00:26]} Qxd4 {[%emt 0:00:03]} 20. Qa3 {[%emt 0:12:46]} Re2 {[%emt 0:05:38]} 21. Qf3 {[%emt 0:01:34]} Rae8 {[%emt 0:00:48]} 22. Be3 {[%emt 0:03:41]} Qxb2 {[%emt 0:02:03]} 23. Rfb1 {[%emt 0:01:47]} Qc2 {[%emt 0:00:36]} 24. Rc1 {[%emt 0:00:13]} Qd3 {[%emt 0:00:30]} 25. a4 {[%emt 0:04:00]} h6 {[%emt 0:07:04]} 26. Rd1 {[%emt 0:01:51]} Qc4 {[%emt 0:00:51]} 27. a5 {[%emt 0:04:28]} bxa5 {[%emt 0:01:16]} 28. Rxa5 {[%emt 0:01:35]} Ng4 {[%emt 0:01:52]} 29. Rxa7 {[%emt 0:07:03]} Nxe3 {[%emt 0:02:22]} 30. fxe3 {[%emt 0:00:14]} R2xe3 {[%emt 0:00:06]} 31. Qf4 {[%emt 0:01:31]} R3e4 {[%emt 0:02:51]} 32. Qf2 {[%emt 0:01:36]} Re2 {[%emt 0:01:04]} 33. Qd4 {[%emt 0:01:21]} Qc2 {[%emt 0:01:11]} 0-1

[Event "98th Caplin Hastings Masters 2024-25"]
[Site "Hastings"]
[Date "2024.12.31"]
[Round "6.3"]
[White "Stefansson, Vignir Vatnar"]
[Black "Vestby-Ellingsen, Mads"]
[Result "1/2-1/2"]
[ECO "E04"]
[WhiteElo "2537"]
[BlackElo "2383"]
[Annotator "TA"]
[PlyCount "35"]
[EventDate "2024.12.23"]
[EventType "swiss"]
[EventCountry "ENG"]
[SourceTitle "playchess.com"]
[Source "ChessBase"]
[SourceQuality "1"]
[TimeControl "5400+30"]

{[%evp 12,35,45,52,40,53,49,38,50,42,45,3,9,0,0,4,12,12,4,-18,-5,-10,-8,-22,0,-2]} 1. d4 {[%emt 0:00:36]} Nf6 {[%emt 0:00:16]} 2. c4 {[%emt 0:00:06]} e6 {[%emt 0:00:15]} 3. g3 {[%emt 0:00:04]} d5 {[%emt 0:00:47]} 4. Bg2 {[%emt 0:00:05]} dxc4 {[%emt 0:01:18]} 5. Nf3 {[%emt 0:02:18]} Nbd7 {[%emt 0:00:21]} 6. O-O {[%emt 0:00:45]} Rb8 {[%emt 0:00:16]} 7. a4 {[%emt 0:00:03]} a6 {[%emt 0:00:14]} 8. a5 {[%emt 0:00:03]} Bd6 {[%emt 0:00:19]} 9. Nbd2 {[%emt 0:08:21]} b5 {[%emt 0:00:23] ...Bb7 would now be deadly.} 10. axb6 {[%emt 0:00:03]} Nxb6 {[%emt 0:00:08]} 11. Nxc4 {[%emt 0:03:55]} Nxc4 {[%emt 0:00:12]} 12. Qa4+ {[%emt 0:00:02]} Rb5 {[%emt 0:00:12]} 13. Qxc4 {[%emt 0:00:04][%cal Of3e5]} O-O $1 {[%emt 0:00:15]} 14. Ne1 {[%emt 0:04:23]} c5 {[%emt 0:02:36]} 15. Nd3 {[%emt 0:01:11]} cxd4 {[%emt 0:00:37]} 16. Qxd4 {[%emt 0:00:13]} e5 {[%emt 0:02:23]} 17. Qa4 {[%emt 0:03:16] [#]} e4 $1 {[%emt 0:18:10]} 18. Bxe4 {[%emt 0:04:52]} 1/2-1/2

[Event "98th Caplin Hastings Masters 2024-25"]
[Site "Hastings"]
[Date "2024.12.31"]
[Round "6.4"]
[White "Siva Mahadevan"]
[Black "Royal, Shreyas"]
[Result "0-1"]
[ECO "B12"]
[WhiteElo "2349"]
[BlackElo "2522"]
[Annotator "TA"]
[PlyCount "70"]
[EventDate "2024.12.23"]
[EventType "swiss"]
[EventCountry "ENG"]
[SourceTitle "playchess.com"]
[Source "ChessBase"]
[SourceQuality "1"]
[TimeControl "5400+30"]

{[%evp 10,70,36,27,30,32,43,43,33,37,41,26,50,45,46,43,52,43,45,54,45,40,77,72,64,26,37,33,27,34,72,79,72,61,60,52,50,35,33,0,0,-29,-91,-49,0,-137,-148,-212,-209,-186,-212,-220,-206,-206,-54,-52,-59,-2073,-1994,-4794,-2206,-29997,-29998]} 1. e4 {[%emt 0:00:36]} c6 {[%emt 0:00:40]} 2. d4 {[%emt 0:00:20]} d5 {[%emt 0:00:05]} 3. e5 {[%emt 0:00:38]} Bf5 {[%emt 0:00:57]} 4. Nf3 {[%emt 0:01:10]} e6 {[%emt 0:00:28]} 5. Be2 {[%emt 0:00:15]} a5 {[%emt 0:00:37]} 6. a4 {[%emt 0:03:33]} Nd7 {[%emt 0:02:02]} 7. O-O {[%emt 0:00:18]} h6 {[%emt 0:00:56]} 8. Nbd2 {[%emt 0:00:34]} Ne7 {[%emt 0:00:55]} 9. Nb3 {[%emt 0:00:40]} Bg4 {[%emt 0:09:13]} 10. Bd2 {[%emt 0:02:15]} Nf5 {[%emt 0:00:37]} 11. Qe1 {[%emt 0:03:16]} b6 {[%emt 0:00:05]} 12. Rc1 {[%emt 0:02:33]} Be7 {[%emt 0:11:22]} 13. c4 {[%emt 0:07:36]} O-O {[%emt 0:00:05]} 14. h3 {[%emt 0:01:58]} Bxf3 {[%emt 0:00:05]} 15. Bxf3 {[%emt 0:00:12]} f6 {[%emt 0:08:28]} 16. exf6 {[%emt 0:11:20]} Rxf6 {[%emt 0:00:02]} 17. cxd5 {[%emt 0:01:10]} cxd5 {[%emt 0:00:06]} 18. Rc6 {[%emt 0:01:10]} Bd6 {[%emt 0:02:08]} 19. Qe2 {[%emt 0:02:11]} Qf8 {[%emt 0:02:50]} 20. Bg4 {[%emt 0:09:22]} (20. Qb5 {keeps more tension.} Nh4 21. Bg4 Kh8 22. Qd3) 20... Re8 {[%emt 0:08:40]} 21. Re1 {[%emt 0:13:05]} Kh8 {[%emt 0:01:52]} 22. Qd3 {[%emt 0:09:40]} Bb8 {[%emt 0:16:00]} 23. Re2 {[%emt 0:05:15]} Nd6 {[%emt 0:00:40]} 24. Be1 {[%emt 0:00:47]} Qf7 {[%emt 0:00:59]} 25. h4 {[%emt 0:03:28]} Rf4 {[%emt 0:02:49]} 26. f3 {[%emt 0:03:27]} e5 {[%emt 0:05:25]} (26... Nf6 $1 $15 {should be considered.} 27. Bh3 (27. Rxb6 Nxg4 28. Nc5 Ne4 $17) 27... Nh5 28. Rxb6 Rf6) 27. Bxd7 {[%emt 0:08:59]} (27. Bg3 $1 $11 e4 28. Qc3) 27... Qxd7 $17 {[%emt 0:00:13]} 28. Rxb6 {[%emt 0:00:06]} (28. Qc2 $17) 28... e4 $19 {[%emt 0:02:21]} (28... Qxa4 29. Nc5 (29. Rxe5 Rxe5 30. dxe5 Ba7 $11) (29. dxe5 Ba7 $17) 29... Qc4 (29... Qxd4+ 30. Qxd4 Rxd4 31. Na6 $16) 30. b3 (30. Bxa5 Rxd4 31. Qxc4 Nxc4 $17) 30... Qxd3 (30... Qxd4+ $2 31. Qxd4 Rxd4 32. Na6 $18) 31. Nxd3 Rxd4 32. Nxe5 $16) 29. fxe4 {[%emt 0:00:36]} dxe4 {[%emt 0:01:38]} 30. Qa6 {[%emt 0:04:03]} Nf5 {[%emt 0:03:46]} (30... Qxa4 $2 31. Rxb8 Rxb8 32. Qxd6 $18) 31. Qb5 {[%emt 0:01:42] [#]} Nxd4 $2 {[%emt 0:00:52]} (31... Qd8 $1 $19 {and ...Bc7 should not be overlooked} 32. g3 Nxg3 (32... Nxd4 33. Nxd4 Ba7 34. Bxa5 $16) (32... Rf3 33. Rxe4 Rf8 34. Nd2 $11) 33. Bxg3 Rg4 34. Rxe4 Rxg3+ (34... Rexe4 $2 35. Rxb8 $18) 35. Kf2 Rf8+ (35... Rxe4 $2 36. Rxb8 $18) 36. Ke1 Qc8) 32. Nxd4 $15 {[%emt 0:02:22]} (32. Qxd7 $2 {is a self mate.} Nxe2+ 33. Kh2 Rxh4#) ({But not} 32. Rxh6+ $2 gxh6 33. Nxd4 Qxd4+ $19) 32... Qxd4+ {[%emt 0:00:06]} 33. Rf2 $2 {[%emt 0:01:16][%mdl 8192] [#]} (33. Bf2 $15 Rxf2 (33... Qd1+ 34. Re1 $17) 34. Rxf2) 33... Rxf2 $1 $19 {[%emt 0:00:12]} 34. Rxh6+ {[%emt 0:00:39]} Kg8 {[%emt 0:00:54]} 35. Bc3 {[%emt 0:00:48]} Qd1+ {[%emt 0:00:50]} 0-1

[Event "98th Caplin Hastings Masters 2024-25"]
[Site "Hastings"]
[Date "2024.12.31"]
[Round "6.5"]
[White "Bozinakis, Pavlos"]
[Black "Ghazarian, Kirk"]
[Result "0-1"]
[ECO "A23"]
[WhiteElo "2271"]
[BlackElo "2501"]
[Annotator "RC"]
[PlyCount "96"]
[EventDate "2024.12.23"]
[EventType "swiss"]
[EventCountry "ENG"]
[SourceTitle "playchess.com"]
[Source "ChessBase"]
[SourceQuality "1"]
[TimeControl "5400+30"]

1. c4 {[%emt 0:00:10]} Nf6 {[%emt 1:31:00]} 2. g3 {[%emt 0:00:28]} e5 {[%emt 0:00:30]} 3. Bg2 {[%emt 0:00:27]} Bc5 {[%emt 0:00:30]} 4. Nc3 {[%emt 1:31:25]} c6 {[%emt 0:00:30]} 5. Nf3 {[%emt 0:00:00]} e4 {[%emt 0:00:00]} 6. Nh4 {[%emt 0:00:00]} d5 {[%emt 0:00:00]} 7. cxd5 {[%emt 0:00:00]} cxd5 {[%emt 0:00:00]} 8. d3 {[%emt 0:00:00]} Ng4 {[%emt 0:00:00]} 9. O-O {[%emt 0:02:30]} g5 {[%emt 0:02:30]} 10. d4 {[%emt 0:00:00]} Bb6 {[%emt 0:00:30]} 11. h3 {[%emt 0:01:00]} gxh4 {[%emt 0:00:00]} 12. hxg4 {[%emt 0:00:30]} Nc6 {[%emt 0:01:00]} 13. Bf4 {[%emt 0:00:30]} Bxg4 {[%emt 0:00:30]} 14. Qa4 {[%emt 0:00:30]} O-O {[%emt 0:00:30]} 15. e3 {[%emt 0:00:30]} Ba5 {[%emt 0:00:30]} 16. Rfc1 {[%emt 0:00:30]} Nb4 {[%emt 0:00:30]} 17. Qb3 {[%emt 0:00:30]} Be6 {[%emt 0:00:00]} 18. Qd1 {[%emt 0:00:00]} Nd3 {[%emt 0:00:00]} 19. Qh5 {[%emt 0:01:00]} Nxc1 {[%emt 0:01:30]} 20. Rxc1 {[%emt 0:00:30]} Rc8 {[%emt 0:00:30]} 21. g4 {[%emt 0:00:30]} Rc6 {[%emt 0:00:30]} 22. Bg5 {[%emt 0:00:30]} f6 {[%emt 0:00:30]} 23. Bxh4 {[%emt 0:00:30]} Qe8 {[%emt 0:00:30]} 24. Qxe8 {[%emt 0:00:00]} Rxe8 {[%emt 0:00:30]} 25. Bxf6 {[%emt 0:00:00]} Bxg4 {[%emt 0:00:30]} 26. Be5 {[%emt 0:01:30]} Rec8 {[%emt 0:00:30]} 27. Rb1 {[%emt 0:00:30]} Bxc3 {[%emt 0:00:30]} 28. bxc3 {[%emt 0:00:30]} b6 {[%emt 0:00:00]} 29. Rb5 {[%emt 0:00:00]} Be6 {[%emt 0:01:00]} 30. a4 {[%emt 0:01:00]} Rxc3 {[%emt 0:00:30]} 31. a5 {[%emt 0:00:30]} R3c6 {[%emt 0:00:30]} 32. f3 {[%emt 0:00:30]} exf3 {[%emt 0:00:00]} 33. Bxf3 {[%emt 0:00:30]} Rd8 {[%emt 0:01:00]} 34. e4 {[%emt 0:00:00]} Rc3 {[%emt 0:00:30]} 35. Bg2 {[%emt 0:01:00]} dxe4 {[%emt 0:00:30]} 36. axb6 {[%emt 0:00:00]} axb6 {[%emt 0:00:30]} 37. Bxe4 {[%emt 0:01:00]} Rb3 {[%emt 0:00:30]} 38. Rxb3 {[%emt 0:00:00]} Bxb3 {[%emt 0:00:30]} 39. Kf2 {[%emt 0:01:00]} b5 {[%emt 0:00:30]} 40. Ke3 {[%emt 0:00:30]} b4 {[%emt 0:00:30]} 41. Kd3 {[%emt 0:00:30]} Be6 {[%emt 0:00:30]} 42. Bc7 {[%emt 0:00:30]} Rd7 {[%emt 0:00:30]} 43. Ba5 {[%emt 0:00:30]} b3 {[%emt 0:00:00]} 44. Bc3 {[%emt 0:00:30]} h5 {[%emt 0:01:00]} 45. Bc6 {[%emt 0:00:00]} Rd6 {[%emt 0:00:30]} 46. Ba8 {[%emt 0:01:00]} h4 {[%emt 0:00:30]} 47. Ke4 {[%emt 0:00:30]} h3 {[%emt 0:00:30]} 48. Ke5 {[%emt 0:00:30]} Bd5 {[%emt 0:00:30]} 0-1

[Event "98th Caplin Hastings Masters 2024-25"]
[Site "Hastings"]
[Date "2024.12.31"]
[Round "6.6"]
[White "Seo, Jung Min"]
[Black "Steiners, Emils"]
[Result "1-0"]
[ECO "D36"]
[WhiteElo "2491"]
[BlackElo "2209"]
[Annotator "TA"]
[PlyCount "69"]
[EventDate "2024.12.23"]
[EventType "swiss"]
[EventCountry "ENG"]
[SourceTitle "playchess.com"]
[Source "ChessBase"]
[SourceQuality "1"]
[TimeControl "5400+30"]

{[%evp 23,69,15,48,19,32,26,35,31,30,32,47,32,57,52,115,109,158,166,166,152,185,190,266,210,237,227,217,84,163,168,164,178,176,176,184,181,167,162,1091,1040,2132,2050,29989,29990,29990,29991,29995,29995]} 1. d4 {[%emt 0:00:01]} d5 {[%emt 0:00:08]} 2. c4 {[%emt 0:00:03]} e6 {[%emt 0:00:08]} 3. Nc3 {[%emt 0:00:12]} Nf6 {[%emt 0:00:12]} 4. cxd5 {[%emt 0:02:43]} exd5 {[%emt 0:00:14]} 5. Bg5 {[%emt 0:00:12]} Nbd7 {[%emt 0:00:22]} 6. e3 {[%emt 0:00:11]} c6 {[%emt 0:00:09]} 7. Bd3 {[%emt 0:00:50]} Be7 {[%emt 0:00:15]} 8. Qc2 {[%emt 0:02:11]} O-O {[%emt 0:00:17]} 9. Nf3 {[%emt 0:00:34]} Re8 {[%emt 0:00:53]} 10. O-O {[%emt 0:00:08]} Nf8 {[%emt 0:01:54]} 11. Rab1 {[%emt 0:03:18]} a5 {[%emt 0:04:06]} 12. a3 {[%emt 0:01:10]} Be6 {[%emt 0:06:14]} 13. b4 {[%emt 0:03:06]} axb4 {[%emt 0:03:27]} 14. axb4 {[%emt 0:00:14]} h6 {[%emt 0:08:54]} 15. Bh4 {[%emt 0:07:31]} N8d7 {[%emt 0:02:27]} 16. Rfc1 {[%emt 0:07:55]} Rc8 {[%emt 0:08:20]} 17. Na4 {[%emt 0:01:06]} Bg4 {[%emt 0:08:25]} 18. Nc5 {[%emt 0:04:42]} Bxf3 {[%emt 0:02:12]} ({Black should try} 18... b5 $14) 19. gxf3 $16 {[%emt 0:00:04]} b6 {[%emt 0:03:40]} (19... b5 $142) 20. Nxd7 {[%emt 0:00:21]} Nxd7 {[%emt 0:00:14]} 21. Bg3 {[%emt 0:00:04]} b5 {[%emt 0:05:09]} 22. Bf5 {[%emt 0:00:43]} h5 {[%emt 0:01:51]} (22... Bf8 $142 23. Bh3 h5) 23. Rb3 {[%emt 0:07:40]} h4 {[%emt 0:07:05]} 24. Bf4 {[%emt 0:00:05]} Bf8 {[%emt 0:15:08][%cal Be7f8,Bf8h6,Bh6g7][%mdl 32]} 25. Rc3 {[%emt 0:04:22]} (25. Ra3 $18 {is more deadly.}) 25... g5 {[%emt 0:03:23]} (25... g6 $16 {was called for.}) 26. Be5 $1 $36 {[%emt 0:17:37][%mdl 2048] Black is under strong pressure.} (26. Rxc6 Rxc6 27. Qxc6 gxf4 28. Bxd7 (28. Qxd7 fxe3 29. Qxd8 exf2+ 30. Kxf2 Rxd8 $11) 28... Re7 $11) 26... Nxe5 {[%emt 0:03:12]} 27. dxe5 {[%emt 0:01:17]} Rc7 {[%emt 0:00:44] [#] Black is weak on the light squares} 28. f4 $1 {[%emt 0:00:58]} (28. Rxc6 Rxc6 29. Qxc6 Rxe5 $15) 28... gxf4 {[%emt 0:02:57]} 29. exf4 {[%emt 0:00:03]} Bh6 {[%emt 0:00:15] [#]} 30. Kh1 $1 {[%emt 0:07:37]} ({Stronger than} 30. Rxc6 Rxc6 31. Qxc6 Bxf4 $11) 30... Kh8 $2 {[%emt 0:05:31]} (30... Bxf4 31. Rg1+ Kf8 32. Bh7 Bxe5 33. Re3 $14) (30... d4) 31. Qe2 {[%emt 0:01:56][%cal Oe2h5]} ({Not} 31. Rxc6 Rxc6 32. Qxc6 Bxf4 $16) 31... Bg7 {[%emt 0:05:56]} 32. Rg1 {[%emt 0:05:05] White threatens Qh5+ and mate.} f6 {[%emt 0:02:04]} 33. Qh5+ {[%emt 0:00:10]} Kg8 {[%emt 0:00:05]} 34. exf6 {[%emt 0:00:20]} d4 {[%emt 0:00:21]} 35. Qh7+ {[%emt 0:00:16]} 1-0